fUST/lending_fUST_20260112
["ID","MTS","AMOUNT","RATE_DAILY","PERIOD"]
[401346719,1768149056139,-500.0,0.00027671,8]
[401346720,1768149056149,-500.0,0.00027671,2]
[401346721,1768149056158,-503.55890318,0.00027671,8]
[401346722,1768149056168,-311.04511253,0.00027671,8]
[401346723,1768149056178,-500.0,0.00027671,8]
[401346724,1768149056188,-500.0,0.00027671,8]
[401346725,1768149056197,-151.32658008,0.00027671,8]
[401346726,1768149056207,-500.0,0.00027671,2]
[401346727,1768149056216,-160.4969878,0.00027671,8]
[401346728,1768149056226,-500.0,0.00027671,8]
[401346729,1768149056236,-500.0,0.00027671,2]
[401346730,1768149056246,-2769.41,0.00027671,3]
[401346731,1768149056256,-500.0,0.00027671,8]
[401346732,1768149056266,-2486.72,0.00027671,8]
[401346733,1768149056276,-16913.26,0.00027671,8]
[401346734,1768149056285,-222.92460277,0.00027671,8]
[401346735,1768149056295,-4899.58,0.00027671,8]
[401346736,1768149056304,-2226.28,0.00027671,8]
[401346737,1768149056314,-3222.62,0.00027671,8]
[401346738,1768149056323,-2536.91,0.00027671,8]
[401346739,1768149056334,-6797.13,0.00027671,8]
[401346740,1768149056343,-1576.63,0.00027671,8]
[401346741,1768149056352,-500.0,0.00027671,8]
[401346742,1768149056362,-500.0,0.00027671,8]
[401346743,1768149056382,-2011.31,0.00027671,8]
[401346744,1768149056399,-2140.41,0.000277,14]
[401346745,1768149056418,-877.9134139,0.00027939,2]
[401346746,1768149056439,-500.0,0.00027945,8]
[401346747,1768149056461,-511.42,0.00027945,8]
[401346748,1768149056479,-151.0,0.00027945,7]
[401346749,1768149056497,-151.0,0.00027945,7]
[401346750,1768149056513,-151.0,0.00027945,7]
[401346751,1768149056531,-151.0,0.00027945,7]
[401346752,1768149056551,-500.0,0.00027945,8]
[401346753,1768149056572,-151.0,0.00027945,7]
[401346754,1768149056586,-700.258706,0.00027945,7]
[401346755,1768149056604,-700.258706,0.00027945,7]
[401346756,1768149056620,-700.258706,0.00027945,7]
[401346757,1768149056637,-152.655079,0.00027945,7]
[401346758,1768149056650,-700.258706,0.00027945,7]
[401346759,1768149056666,-161.096358,0.00027945,7]
[401346760,1768149056681,-500.0,0.00027945,8]
[401346761,1768149056696,-500.0,0.00027945,8]
[401346762,1768149056710,-755.83,0.00027945,8]
[401346763,1768149056726,-500.0,0.00027945,8]
[401346764,1768149056740,-500.0,0.00027945,2]
[401346765,1768149056756,-500.0,0.00027945,8]
[401346766,1768149056771,-500.0,0.00027945,8]
[401346767,1768149056785,-151.0,0.00027945,7]
[401346768,1768149056800,-151.0,0.00027945,7]
[401346769,1768149056815,-151.0,0.00027945,7]
[401346770,1768149056830,-151.0,0.00027945,7]
[401346771,1768149056847,-500.0,0.00027945,8]
[401346772,1768149056862,-151.0,0.00027945,7]
[401346773,1768149056878,-151.0,0.00027945,7]
[401346774,1768149056893,-151.0,0.00027945,7]
[401346775,1768149056908,-151.0,0.00027945,7]
[401346776,1768149056924,-232.476622,0.00027945,7]
[401346777,1768149056939,-500.0,0.00027945,2]
[401346778,1768149056955,-216.089114,0.00027945,7]
[401346779,1768149056970,-216.089114,0.00027945,7]
[401346780,1768149056986,-2769.41,0.00027945,3]
[401346781,1768149057001,-216.089114,0.00027945,7]
[401346782,1768149057015,-500.0,0.00027945,8]
[401346783,1768149057024,-151.0,0.00027945,7]
[401346784,1768149057034,-216.089114,0.00027945,7]
[401346785,1768149057044,-151.0,0.00027945,7]
[401346786,1768149057054,-2486.72,0.00027945,8]
[401346787,1768149057064,-160.161373,0.00027945,7]
[401346788,1768149057075,-16913.26,0.00027945,8]
[401346789,1768149057085,-151.0,0.00027945,7]
[401346790,1768149057097,-4899.58,0.00027945,8]
[401346791,1768149057241,-2226.28,0.00027945,8]
[401346792,1768149057261,-151.0,0.00027945,7]
[401346793,1768149057272,-151.0,0.00027945,7]
[401346794,1768149057282,-151.0,0.00027945,7]
[401346795,1768149057293,-151.0,0.00027945,7]
[401346796,1768149057303,-151.0,0.00027945,7]
[401346797,1768149057314,-151.0,0.00027945,7]
[401346798,1768149057324,-151.0,0.00027945,7]
[401346799,1768149057335,-3222.62,0.00027945,8]
[401346800,1768149057345,-2536.91,0.00027945,8]
[401346801,1768149057355,-6797.13,0.00027945,8]
[401346802,1768149057365,-1576.63,0.00027945,8]
[401346803,1768149057375,-500.0,0.00027945,8]
[401346804,1768149057385,-500.0,0.00027945,8]
[401346805,1768149057395,-2011.31,0.00027945,8]
[401346806,1768149057406,-151.0,0.00027945,7]
[401346807,1768149057415,-151.0,0.00027945,7]
[401346808,1768149057425,-500.0,0.00027945,15]
[401346809,1768149057437,-250.0,0.00027945,5]
[401346810,1768149057447,-556.3,0.0002797,3]
[401346811,1768149057457,-574.12855637,0.00027976,2]
[401346812,1768149057469,-155.57399191,0.00027991,5]
[401346813,1768149057479,-15330.50011171,0.00028,2]
[401346814,1768149057489,-520.4204079,0.00028,2]
[401346815,1768149057498,-5000.0,0.00028037,2]
[401346816,1768149057508,-468.77,0.000281,2]
[401346817,1768149057517,-173.58038977,0.00028183,30]
[401346818,1768149057526,-500.0,0.00028219,8]
[401346819,1768149057535,-511.42,0.00028219,8]
[401346820,1768149057546,-514.0321533,0.00028219,8]
[401346821,1768149057556,-500.0,0.00028219,8]
[401346822,1768149057566,-500.0,0.00028219,8]
[401346823,1768149057576,-755.83,0.00028219,8]
[401346824,1768149057586,-500.0,0.00028219,8]
[401346825,1768149057595,-500.0,0.00028219,2]
[401346826,1768149057606,-507.5672722,0.00028219,8]
[401346827,1768149057618,-500.0,0.00028219,8]
[401346828,1768149057627,-500.0,0.00028219,8]
[401346829,1768149057637,-500.0,0.00028219,2]
[401346830,1768149057646,-2769.41,0.00028219,3]
[401346831,1768149057657,-500.0,0.00028219,8]
[401346832,1768149057667,-2486.72,0.00028219,8]
[401346833,1768149057679,-16913.26,0.00028219,8]
[401346834,1768149057690,-4899.58,0.00028219,8]
[401346835,1768149057719,-2226.28,0.00028219,8]
[401346836,1768149057729,-3222.62,0.00028219,8]
[401346837,1768149057739,-2536.91,0.00028219,8]
[401346838,1768149057750,-6797.13,0.00028219,8]
[401346839,1768149057760,-1576.63,0.00028219,8]
[401346840,1768149057770,-202.86433989,0.00028219,8]
[401346841,1768149057780,-500.0,0.00028219,8]
[401346842,1768149057790,-2011.31,0.00028219,8]
[401346843,1768149057800,-151.0,0.000283,10]
[401346844,1768149057810,-13367.01,0.000283,2]
[401346845,1768149057820,-151.74,0.000284,2]
[401346846,1768149057830,-291.01350449,0.00028493,8]
[401346847,1768149057840,-511.42,0.00028493,8]
[401346848,1768149057849,-500.0,0.00028493,8]
[401346849,1768149057859,-500.0,0.00028493,8]
[401346850,1768149057869,-755.83,0.00028493,8]
[401346851,1768149057879,-500.0,0.00028493,8]
[401346852,1768149057889,-500.0,0.00028493,2]
[401346853,1768149057898,-500.0,0.00028493,8]
[401346854,1768149057907,-500.0,0.00028493,8]
[401346855,1768149057917,-500.0,0.00028493,2]
[401346856,1768149057929,-2769.41,0.00028493,3]
[401346857,1768149057938,-500.0,0.00028493,8]
[401346858,1768149057948,-2486.72,0.00028493,8]
[401346859,1768149057958,-16913.26,0.00028493,8]
[401346860,1768149057968,-4899.58,0.00028493,8]
[401346861,1768149057978,-2226.28,0.00028493,8]
[401346862,1768149057988,-3222.62,0.00028493,8]
[401346863,1768149057998,-2536.91,0.00028493,8]
[401346864,1768149058008,-6797.13,0.00028493,8]
[401346865,1768149058017,-1576.63,0.00028493,8]
[401346866,1768149058027,-500.0,0.00028493,8]
[401346867,1768149058036,-2011.31,0.00028493,8]
[401346868,1768149058048,-551.32,0.00028493,15]
[401346869,1768149058057,-350.0,0.00028493,5]
[401346870,1768149058067,-595.37131296,0.00028524,2]
[401346871,1768149058077,-18947.52786216,0.00028552,2]
[401346872,1768149058086,-468.77,0.000286,2]
[401346873,1768149058096,-155.5739919,0.00028734,5]
[401346874,1768149058106,-157.11492553,0.00028734,5]
[401346875,1768149058115,-429431.6619482,0.0002876,14]
[401346876,1768149058125,-151.0,0.0002876,7]
[401346877,1768149058136,-151.0,0.0002876,7]
[401346878,1768149058145,-175.972983,0.0002876,7]
[401346879,1768149058155,-151.0,0.0002876,7]
[401346880,1768149058164,-151.0,0.0002876,7]
[401346881,1768149058173,-152.205819,0.0002876,7]
[401346882,1768149058184,-151.0,0.0002876,7]
[401346883,1768149058194,-151.0,0.0002876,7]
[401346884,1768149058203,-151.0,0.0002876,7]
[401346885,1768149058213,-151.0,0.0002876,7]
[401346886,1768149058222,-511.42,0.00028767,8]
[401346887,1768149058231,-500.0,0.00028767,8]
[401346888,1768149058240,-500.0,0.00028767,8]
[401346889,1768149058250,-755.83,0.00028767,8]
[401346890,1768149058259,-500.0,0.00028767,8]
[401346891,1768149058268,-500.0,0.00028767,2]
[401346892,1768149058277,-500.0,0.00028767,8]
[401346893,1768149058287,-453.95776,0.00028767,8]
[401346894,1768149058296,-500.0,0.00028767,2]
[401346895,1768149058305,-2769.41,0.00028767,3]
[401346896,1768149058315,-500.0,0.00028767,8]
[401346897,1768149058324,-2486.72,0.00028767,8]
[401346898,1768149058334,-16913.26,0.00028767,8]
[401346899,1768149058344,-4899.58,0.00028767,8]
[401346900,1768149058353,-2226.28,0.00028767,8]
[401346901,1768149058363,-3222.62,0.00028767,8]
[401346902,1768149058372,-2536.91,0.00028767,8]
[401346903,1768149058382,-6797.13,0.00028767,8]
[401346904,1768149058392,-1576.63,0.00028767,8]
[401346905,1768149058401,-500.0,0.00028767,8]
[401346906,1768149058411,-2011.31,0.00028767,8]
[401346907,1768149058420,-157.0,0.00028849,31]
[401346908,1768149058432,-2412.5313746,0.00029,10]
[401346909,1768149058441,-8382.93313115,0.0002902,2]
[401346910,1768149058452,-511.42,0.00029041,8]
[401346911,1768149058463,-500.0,0.00029041,8]
[401346912,1768149058472,-190.0354984,0.00029041,8]
[401346913,1768149058483,-755.83,0.00029041,8]
[401346914,1768149058493,-500.0,0.00029041,8]
[401346915,1768149058502,-500.0,0.00029041,2]
[401346916,1768149058512,-500.0,0.00029041,8]
[401346917,1768149058521,-500.0,0.00029041,2]
[401346918,1768149058531,-2769.41,0.00029041,3]
[401346919,1768149058542,-500.0,0.00029041,8]
[401346920,1768149058551,-2486.72,0.00029041,8]
[401346921,1768149058561,-16913.26,0.00029041,8]
[401346922,1768149058571,-4899.58,0.00029041,8]
[401346923,1768149058581,-2226.28,0.00029041,8]
[401346924,1768149058590,-3222.62,0.00029041,8]
[401346925,1768149058600,-2536.91,0.00029041,8]
[401346926,1768149058609,-6797.13,0.00029041,8]
[401346927,1768149058619,-1576.63,0.00029041,8]
[401346928,1768149058628,-500.0,0.00029041,8]
[401346929,1768149058637,-2011.31,0.00029041,8]
[401346930,1768149058646,-450.0,0.00029041,5]
[401346931,1768149058656,-617.40005154,0.00029072,2]
[401346932,1768149058665,-468.77,0.000291,2]
[401346933,1768149058675,-151.74,0.000293,2]
[401346934,1768149058685,-511.42,0.00029315,8]
[401346935,1768149058695,-500.0,0.00029315,8]
[401346936,1768149058709,-755.83,0.00029315,8]
[401346937,1768149058718,-500.0,0.00029315,8]
[401346938,1768149058728,-500.0,0.00029315,2]
[401346939,1768149058737,-500.0,0.00029315,8]
[401346940,1768149058747,-311.25399765,0.00029315,2]
[401346941,1768149058756,-2769.41,0.00029315,3]
[401346942,1768149058766,-500.0,0.00029315,8]
[401346943,1768149058775,-2486.72,0.00029315,8]
[401346944,1768149058785,-16913.26,0.00029315,8]
[401346945,1768149058794,-4899.58,0.00029315,8]
[401346946,1768149058803,-2226.28,0.00029315,8]
[401346947,1768149058813,-3222.62,0.00029315,8]
[401346948,1768149058823,-2536.91,0.00029315,8]
[401346949,1768149058833,-6797.13,0.00029315,8]
[401346950,1768149058842,-1576.63,0.00029315,8]
[401346951,1768149058852,-500.0,0.00029315,8]
[401346952,1768149058862,-2011.31,0.00029315,8]
[401346953,1768149058871,-556.3,0.00029475,3]
[401346954,1768149058881,-2665.91589527,0.00029513,2]
[401346955,1768149058890,-511.42,0.00029589,8]
[401346956,1768149058900,-298.53130147,0.00029589,8]
[401346957,1768149058909,-181.667878,0.00029589,7]
[401346958,1768149058919,-755.83,0.00029589,8]
[401346959,1768149058929,-153.700094,0.00029589,7]
[401346960,1768149058939,-500.0,0.00029589,8]
[401346961,1768149058950,-500.0,0.00029589,2]
[401346962,1768149058959,-500.0,0.00029589,8]
[401346963,1768149058969,-2769.41,0.00029589,3]
[401346964,1768149058979,-500.0,0.00029589,8]
[401346965,1768149058988,-2486.72,0.00029589,8]
[401346966,1768149058998,-16913.26,0.00029589,8]
[401346967,1768149059007,-4899.58,0.00029589,8]
[401346968,1768149059017,-2226.28,0.00029589,8]
[401346969,1768149059027,-3222.62,0.00029589,8]
[401346970,1768149059036,-2536.91,0.00029589,8]
[401346971,1768149059045,-6797.13,0.00029589,8]
[401346972,1768149059054,-1576.63,0.00029589,8]
[401346973,1768149059064,-500.0,0.00029589,8]
[401346974,1768149059073,-2011.31,0.00029589,8]
[401346975,1768149059082,-550.0,0.00029589,5]
[401346976,1768149059091,-151.0,0.0002959,7]
[401346977,1768149059101,-159.196638,0.0002959,7]
[401346978,1768149059110,-160.734397,0.0002959,7]
[401346979,1768149059119,-151.0,0.0002959,7]
[401346980,1768149059128,-466.694893,0.0002959,7]
[401346981,1768149059138,-466.694893,0.0002959,7]
[401346982,1768149059147,-466.694893,0.0002959,7]
[401346983,1768149059157,-466.694893,0.0002959,7]
[401346984,1768149059166,-151.0,0.0002959,7]
[401346985,1768149059176,-151.0,0.0002959,7]
[401346986,1768149059185,-151.0,0.0002959,7]
[401346987,1768149059194,-1112.0,0.00029599,2]
[401346988,1768149059203,-468.77,0.000296,2]
[401346989,1768149059212,-151.0,0.00029605,7]
[401346990,1768149059222,-151.0,0.00029605,2]
[401346991,1768149059232,-151.0,0.00029605,7]
[401346992,1768149059241,-1324.597958,0.00029605,7]
[401346993,1768149059250,-1324.597958,0.00029605,7]
[401346994,1768149059260,-1324.597958,0.00029605,7]
[401346995,1768149059269,-1638.845663,0.00029605,7]
[401346996,1768149059277,-1324.597958,0.00029605,7]
[401346997,1768149059286,-1638.845663,0.00029605,7]
[401346998,1768149059294,-1638.845663,0.00029605,7]
[401346999,1768149059303,-1638.845663,0.00029605,7]
[401347000,1768149059312,-239.620179,0.00029605,7]
[401347001,1768149059322,-165.523557,0.00029605,7]
[401347002,1768149059420,-165.523557,0.00029605,7]
[401347003,1768149059431,-165.523557,0.00029605,7]
[401347004,1768149059441,-165.523557,0.00029605,7]
[401347005,1768149059451,-728.329358,0.00029605,7]
[401347006,1768149059460,-728.329358,0.00029605,7]
[401347007,1768149059475,-192.928076,0.00029605,7]
[401347008,1768149059484,-728.329358,0.00029605,7]
[401347009,1768149059494,-728.329358,0.00029605,7]
[401347010,1768149059504,-151.0,0.00029605,7]
[401347011,1768149059514,-640.24385345,0.0002962,2]
[401347012,1768149059523,-155.57399191,0.00029623,5]
[401347013,1768149059532,-157.11492552,0.00029623,5]
[401347014,1768149059543,-151.0,0.00029863,7]
[401347015,1768149059552,-151.0,0.00029863,7]
[401347016,1768149059561,-511.42,0.00029863,8]
[401347017,1768149059571,-151.0,0.00029863,7]
[401347018,1768149059581,-151.0,0.00029863,7]
[401347019,1768149059590,-755.83,0.00029863,8]
[401347020,1768149059600,-313.65745506,0.00029863,8]
[401347021,1768149059609,-500.0,0.00029863,2]
[401347022,1768149059618,-151.0,0.00029863,7]
[401347023,1768149059627,-151.0,0.00029863,7]
[401347024,1768149059636,-151.0,0.00029863,7]
[401347025,1768149059645,-500.0,0.00029863,8]
[401347026,1768149059655,-349.055387,0.00029863,7]
[401347027,1768149059665,-349.055387,0.00029863,7]
[401347028,1768149059675,-349.055387,0.00029863,7]
[401347029,1768149059685,-349.055387,0.00029863,7]
[401347030,1768149059695,-2769.41,0.00029863,3]
[401347031,1768149059704,-500.0,0.00029863,8]
[401347032,1768149059714,-2486.72,0.00029863,8]
[401347033,1768149059723,-16913.26,0.00029863,8]
[401347034,1768149059733,-4899.58,0.00029863,8]
[401347035,1768149059742,-2226.28,0.00029863,8]
[401347036,1768149059752,-3222.62,0.00029863,8]
[401347037,1768149059762,-2536.91,0.00029863,8]
[401347038,1768149059772,-6797.13,0.00029863,8]
[401347039,1768149059781,-1576.63,0.00029863,8]
[401347040,1768149059791,-500.0,0.00029863,8]
[401347041,1768149059800,-2011.31,0.00029863,8]
[401347042,1768149059810,-500.0,0.0002989,7]
[401347043,1768149059819,-934.35070479,0.00029939,2]
[401347044,1768149059829,-588120.82157124,0.00029998,2]
[401347045,1768149059839,-151.0,0.00029998,7]
[401347046,1768149059849,-243.363595,0.00029998,7]
[401347047,1768149059859,-151.0,0.00029998,7]
[401347048,1768149059869,-171.590888,0.00029998,7]
[401347049,1768149059879,-151.0,0.00029998,7]
[401347050,1768149059888,-151.0,0.00029998,7]
[401347051,1768149059898,-151.0,0.00029998,7]
[401347052,1768149059908,-151.0,0.00029998,7]
[401347053,1768149059918,-2140.41,0.0003,14]
[401347054,1768149059927,-5008.97139185,0.0003,10]
[401347055,1768149059939,-89030.96900453,0.0003,30]
[401347056,1768149059948,-258.50979211,0.0003,10]
[401347057,1768149059958,-223.06,0.00030033,30]
[401347058,1768149059967,-468.77,0.000301,2]
[401347059,1768149059977,-378.713,0.00030118,25]
[401347060,1768149059987,-177.386,0.00030118,25]
[401347061,1768149059996,-511.42,0.00030136,8]
[401347062,1768149060005,-755.83,0.00030136,8]
[401347063,1768149060016,-295.492411,0.00030136,7]
[401347064,1768149060025,-151.0,0.00030136,7]
[401347065,1768149060035,-500.0,0.00030136,2]
[401347066,1768149060044,-151.0,0.00030136,7]
[401347067,1768149060054,-151.0,0.00030136,7]
[401347068,1768149060063,-500.0,0.00030136,8]
[401347069,1768149060072,-2769.41,0.00030136,3]
[401347070,1768149060082,-435.79809887,0.00030136,8]
[401347071,1768149060092,-2486.72,0.00030136,8]
[401347072,1768149060102,-16913.26,0.00030136,8]
[401347073,1768149060112,-4899.58,0.00030136,8]
[401347074,1768149060121,-2226.28,0.00030136,8]
[401347075,1768149060131,-3222.62,0.00030136,8]
[401347076,1768149060141,-2536.91,0.00030136,8]
[401347077,1768149060152,-6797.13,0.00030136,8]
[401347078,1768149060163,-1576.63,0.00030136,8]
[401347079,1768149060173,-500.0,0.00030136,8]
[401347080,1768149060184,-2011.31,0.00030136,8]
[401347081,1768149060194,-300.0,0.00030137,5]
[401347082,1768149060203,-650.0,0.00030137,5]
[401347083,1768149060213,-506.7938,0.00030137,2]
[401347084,1768149060223,-506.7938,0.00030137,3]
[401347085,1768149060232,-506.7924,0.00030137,4]
[401347086,1768149060242,-506.7938,0.00030137,2]
[401347087,1768149060252,-506.7938,0.00030137,3]
[401347088,1768149060262,-221.8624,0.00030137,4]
[401347089,1768149060272,-151.0,0.00030138,31]
[401347090,1768149060282,-151.0,0.00030138,31]
[401347091,1768149060292,-177.831998,0.00030138,7]
[401347092,1768149060301,-151.0,0.00030138,31]
[401347093,1768149060310,-151.0,0.00030138,31]
[401347094,1768149060319,-2099.00986107,0.0003014,120]
[401347095,1768149060328,-4979.17661701,0.00030142,2]
[401347096,1768149060338,-663.93287602,0.00030168,2]
[401347097,1768149060347,-5000.0,0.00030203,2]
[401347098,1768149060357,-1073.0,0.00030242,7]
[401347099,1768149060367,-1073.0,0.00030247,2]
[401347100,1768149060377,-13367.01,0.000303,2]
[401347101,1768149060386,-1073.0,0.00030405,2]
[401347102,1768149060396,-1075.0,0.00030407,2]
[401347103,1768149060406,-511.42,0.0003041,8]
[401347104,1768149060416,-151.0,0.0003041,31]
[401347105,1768149060426,-151.0,0.0003041,31]
[401347106,1768149060439,-151.0,0.0003041,31]
[401347107,1768149060448,-163.811911,0.0003041,31]
[401347108,1768149060459,-157.400999,0.0003041,31]
[401347109,1768149060471,-700.258706,0.0003041,31]
[401347110,1768149060480,-700.258706,0.0003041,31]
[401347111,1768149060491,-700.258706,0.0003041,31]
[401347112,1768149060502,-700.258706,0.0003041,31]
[401347113,1768149060511,-755.83,0.0003041,8]
[401347114,1768149060521,-500.0,0.0003041,2]
[401347115,1768149060530,-500.0,0.0003041,8]
[401347116,1768149060540,-2769.41,0.0003041,3]
[401347117,1768149060549,-2486.72,0.0003041,8]
[401347118,1768149060559,-16913.26,0.0003041,8]
[401347119,1768149060569,-4899.58,0.0003041,8]
[401347120,1768149060579,-2226.28,0.0003041,8]
[401347121,1768149060589,-3222.62,0.0003041,8]
[401347122,1768149060599,-2536.91,0.0003041,8]
[401347123,1768149060608,-6797.13,0.0003041,8]
[401347124,1768149060618,-1576.63,0.0003041,8]
[401347125,1768149060627,-500.0,0.0003041,8]
[401347126,1768149060636,-2011.31,0.0003041,8]
[401347127,1768149060645,-166.0,0.00030493,40]
[401347128,1768149060654,-151.0,0.000305,14]
[401347129,1768149060664,-155.5739919,0.00030539,10]
[401347130,1768149060673,-153.659043,0.00030567,31]
[401347131,1768149060685,-151.0,0.00030567,31]
[401347132,1768149060694,-151.0,0.00030567,31]
[401347133,1768149060704,-151.0,0.00030567,31]
[401347134,1768149060714,-151.0,0.00030567,31]
[401347135,1768149060723,-168.350881,0.00030567,31]
[401347136,1768149060732,-151.0,0.00030567,31]
[401347137,1768149060741,-151.0,0.00030567,31]
[401347138,1768149060750,-151.0,0.00030567,31]
[401347139,1768149060759,-209.953007,0.00030567,31]
[401347140,1768149060768,-151.0,0.00030684,31]
[401347141,1768149060778,-151.0,0.00030684,31]
[401347142,1768149060787,-511.42,0.00030684,8]
[401347143,1768149060796,-755.83,0.00030684,8]
[401347144,1768149060805,-500.0,0.00030684,2]
[401347145,1768149060814,-500.0,0.00030684,8]
[401347146,1768149060823,-151.0,0.00030684,31]
[401347147,1768149060831,-151.0,0.00030684,31]
[401347148,1768149060841,-157.155966,0.00030684,31]
[401347149,1768149060850,-151.0,0.00030684,31]
[401347150,1768149060858,-151.0,0.00030684,31]
[401347151,1768149060867,-151.0,0.00030684,31]
[401347152,1768149060877,-151.0,0.00030684,31]
[401347153,1768149060886,-151.0,0.00030684,31]
[401347154,1768149060895,-216.089114,0.00030684,31]
[401347155,1768149060904,-216.089114,0.00030684,31]
[401347156,1768149060913,-216.089114,0.00030684,31]
[401347157,1768149060922,-2769.41,0.00030684,3]
[401347158,1768149060932,-216.089114,0.00030684,31]
[401347159,1768149060940,-2486.72,0.00030684,8]
[401347160,1768149060950,-16913.26,0.00030684,8]
[401347161,1768149060959,-4899.58,0.00030684,8]
[401347162,1768149060967,-2226.28,0.00030684,8]
[401347163,1768149060976,-3222.62,0.00030684,8]
[401347164,1768149060985,-2536.91,0.00030684,8]
[401347165,1768149060994,-6797.13,0.00030684,8]
[401347166,1768149061003,-1576.63,0.00030684,8]
[401347167,1768149061012,-521.89810151,0.00030684,8]
[401347168,1768149061021,-2011.31,0.00030684,8]
[401347169,1768149061030,-750.0,0.00030685,5]
[401347170,1768149061038,-1073.0,0.0003069,2]
[401347171,1768149061047,-431.85946654,0.00030716,2]
[401347172,1768149061056,-625.87446521,0.00030823,2]
[401347173,1768149061065,-1126.57403737,0.00030823,2]
[401347174,1768149061074,-2002.79828866,0.00030823,2]
[401347175,1768149061083,-3129.37232603,0.00030823,2]
[401347176,1768149061092,-4506.29614949,0.00030823,2]
[401347177,1768149061101,-6133.56975903,0.00030823,2]
[401347178,1768149061110,-8011.19315465,0.00030823,2]
[401347179,1768149061119,-10139.16633635,0.00030823,2]
[401347180,1768149061128,-12517.48930414,0.00030823,2]
[401347181,1768149061138,-230.83702194,0.00030823,2]
[401347182,1768149061147,-923.34808774,0.00030823,2]
[401347183,1768149061156,-1073.0,0.00030834,2]
[401347184,1768149061165,-168.0,0.00030891,2]
[401347185,1768149061174,-511.42,0.00030958,8]
[401347186,1768149061184,-755.83,0.00030958,8]
[401347187,1768149061193,-500.0,0.00030958,2]
[401347188,1768149061202,-500.0,0.00030958,8]
[401347189,1768149061211,-2769.41,0.00030958,3]
[401347190,1768149061220,-2486.72,0.00030958,8]
[401347191,1768149061230,-16913.26,0.00030958,8]
[401347192,1768149061239,-4899.58,0.00030958,8]
[401347193,1768149061248,-2226.28,0.00030958,8]
[401347194,1768149061258,-3222.62,0.00030958,8]
[401347195,1768149061267,-2536.91,0.00030958,8]
[401347196,1768149061358,-6797.13,0.00030958,8]
[401347197,1768149061368,-1576.63,0.00030958,8]
[401347198,1768149061378,-2011.31,0.00030958,8]
[401347199,1768149061387,-556.3,0.0003098,4]
[401347200,1768149061398,-556.64090381,0.00031,30]
[401347201,1768149061408,-500.0,0.00031026,14]
[401347202,1768149061417,-1002.20117456,0.00031037,15]
[401347203,1768149061427,-500.0,0.00031061,7]
[401347204,1768149061438,-2614.42133355,0.0003114,2]
[401347205,1768149061448,-5142.43646252,0.00031161,30]
[401347206,1768149061462,-168.0,0.00031194,2]
[401347207,1768149061472,-174.0,0.000312,2]
[401347208,1768149061482,-511.42,0.00031232,8]
[401347209,1768149061491,-755.83,0.00031232,8]
[401347210,1768149061503,-500.0,0.00031232,2]
[401347211,1768149061513,-500.0,0.00031232,8]
[401347212,1768149061524,-2769.41,0.00031232,3]
[401347213,1768149061535,-2486.72,0.00031232,8]
[401347214,1768149061546,-16913.26,0.00031232,8]
[401347215,1768149061555,-4899.58,0.00031232,8]
[401347216,1768149061565,-2226.28,0.00031232,8]
[401347217,1768149061575,-3222.62,0.00031232,8]
[401347218,1768149061584,-2536.91,0.00031232,8]